{"text_format":"1","workbook":"xlsx","n_sheets":4,"sheets":["【はじめにお読みください】本ツールの使用について","【ステップ１】生産段階","【ステップ２】流通段階","算定結果とラベル"],"not_rendered":{"charts":1,"images":3,"macros":1,"external_links":0,"defined_names":3,"comments":0,"pivot_tables":0},"unopened":[],"bounds":{"document_bytes":16777216,"sheet_cells":100000,"rows_first":2000,"rows_last":500,"rows_between":2000,"halvings":0,"cell_chars":16384,"cell_head_chars":4096},"cells_cut":0,"cells_raw":0,"read":"whole","date_system":"1900"}

{"sheet":"【はじめにお読みください】本ツールの使用について","index":0,"n_rows":29,"n_cols":23,"rows_kept":29,"cut":false,"hidden":false,"merged":[]}
[]
[null,"大阪版カーボンフットプリント算定ツールの使い方"]
[]
[null,"◎本ツールの使い方"]
[null,null,null,"本ツールは無料でどなたでもご利用いただけます。"]
[null,null,null,"適切な運用のため、利用前に以下の確認事項を必ずご確認いただき、ご了承の上ご利用ください。"]
[null,null,null,"※ ご確認後、両方のチェックボックスをクリックすると、算定ページが表示されます。"]
[null,null,"確認事項チェック",null,null,null,null,null,null,null,null,null,null,null,null,null,null,null,null,null,null,"【公開時は非表示】"]
[null,null,null,null,"確認事項１　本ツールの「使用管理要領」を確認し、本要領に則って使用する。",null,null,null,null,null,null,null,null,null,null,null,null,null,null,null,null,"確認事項１",false]
[null,null,null,null,"確認事項２　「使用マニュアル」を確認し、適切な算定およびラベルの使用を行う。",null,null,null,null,null,null,null,null,null,null,null,null,null,null,null,null,"確認事項２",false]
[null,null,null,null,null,null,null,null,null,null,null,null,null,null,null,null,null,null,null,null,null,"シート表示判定",{"$f":"IF(W9=FALSE,\"非表示\",IF(W10=FALSE,\"非表示\",\"表示\"))","v":"非表示"}]
[]
[null,null,null,"＞＞使用管理要領はこちらをクリック"]
[null,null,null,"＞＞使用マニュアルはこちらをクリック"]
[]
[null,"◎本ツールの構成"]
[null,null,null,"本ツールは、以下の３ページ（タブ）から構成されています。"]
[null,null,null,"ステップ１から順番に入力すると、CFPの算定とラベル作成を行うことができます。"]
[null,null,null,"詳しい使い方は、使用マニュアルをご確認ください。"]
[]
[null,null,null,"【ステップ１】生産段階：栽培時のGHG排出量を算定するページです"]
[]
[null,null,null,"【ステップ２】流通段階：輸送時のGHG排出量を算定するページです"]
[]
[null,null,null,"算定結果とラベル：算定結果と大阪版CFPラベルが確認できるページです"]
[]
[null,null,null,"※）CFP：カーボンフットプリントの略称"]
[null,null,null,"※）生産段階の算定は、農林水産省「温室効果ガス簡易算定シート」で算定した結果を表示しています。"]
[null,null,null,"　　なお、特定の条件（残渣の取扱いや水田の水管理等）を仮定したGHG削減量の計算結果を示しています。"]

{"sheet":"【ステップ１】生産段階","index":1,"n_rows":42,"n_cols":41,"rows_kept":42,"cut":false,"hidden":false,"merged":[[5,4,6,9]]}
[null,"大阪版カーボンフットプリント簡易算定シート（生産段階）",null,null,"確認事項のチェックリストに✓がされていません"]
[null,null,"【パターン１】簡単に算定したい場合はこちら",null,null,null,null,null,null,null,null,null,null,null,null,null,null,"公表時は非公表"]
[]
[null,null,"基本情報"]
[null,null,"農作物",null,"　←農作物を選択してください。",null,null,null,null,null,null,null,null,null,null,null,null,null,"【モデルケースのGHG削減量】"]
[null,null,"収穫量 kg（年間）",null,"←把握されている場合はご記入ください。",null,null,null,null,null,null,null,null,null,null,null,null,null,1,2,3,4,5,6,7,8,9,10,11,12,null,"【非選択セルの塗りつぶし条件（H20~H28)】",null,null,null,null,"【収量によるGHG排出量の増減計算】"]
[null,null,"栽培面積 a（年間の延べ面積）",null,null,null,null,null,null,null,null,null,null,null,null,null,null,null,"品目","収量（10a)","収量目安","標準値(10kg)","選択肢①","選択肢②","選択肢③","選択肢④","選択肢⑤","選択肢⑥","選択肢⑦","選択肢⑦",null,"塗りつぶし条件"]
[null,null,"収量の目安：kg/10a（年間）",{"$f":"IF(AND(D6=\"\",D7=\"\"),IF(D5=\"　\",\"\",VLOOKUP($D$5,$S$8:$AD$34,3,FALSE)),\"\")","v":{"$error":"#N/A"}},null,null,null,null,null,null,null,null,null,null,null,null,null,null,"米",491,490,15.24,-1.3,-2.6,-2.27,-0.54,-0.88,-0.56000000000000005,-0.01,-0.41,null,{"$f":"IF(D13=\"〇\",\"塗る\",IF(D14=\"〇\",\"塗る\",\"\"))","v":""},null,null,null,null,"算定品目",null,null,null,{"$f":"IF(D5=0,D31,D5)","v":0}]
[null,null,null,null,null,null,null,null,null,null,null,null,null,null,null,null,null,null,"トマト露地",7005,7000,2.2000000000000002,-0.44,-0.88,-0.82,-0.38,-0.56999999999999995,0,0,-0.08,null,{"$f":"IF(D12=\"〇\",\"塗る\",IF(D14=\"〇\",\"塗る\",\"\"))","v":""},null,null,null,null,"標準収量の補足表示判定",null,null,null,{"$f":"IF(AO19=0,AO13,\"有\")","v":{"$error":"#N/A"}}]
[null,null,"農薬・化学肥料",null,null,null,null,null,null,null,null,null,null,null,null,null,null,null,"トマト施設",12087,12100,10.59,-0.4,-0.8,-0.77,-0.72,-1.06,-0.06,-6.27,-1.01,null,{"$f":"IF(D12=\"〇\",\"塗る\",IF(D13=\"〇\",\"塗る\",\"\"))","v":""}]
[null,null,"取組みモデルケース","選択項目","GHG削減量",null,null,null,null,null,null,null,null,null,null,null,null,null,"キュウリ露地",6590,6600,2.88,-0.69,-1.39,-1.34,-0.38,-0.59,0,0,-0.09,null,null,null,null,null,null,"標準GHG排出量（kg-CO2e / 10kg）",null,null,null,{"$f":"VLOOKUP(AO8,S8:AD34,4,FALSE)","v":{"$error":"#N/A"}}]
[null,null,"農薬・化学肥料の使用量を5割削減",null,{"$f":"IF(D12=\"〇\",VLOOKUP($D$5,$S$8:$AD$34,5,FALSE),\"ー\")","v":"ー"},"←",null,null,null,null,null,null,null,null,null,null,null,null,"キュウリ施設",11558,11500,10.94,-0.67,-1.34,-1.28,-0.74,-1.1100000000000001,-0.06,-6.74,-0.63,null,null,null,null,null,null,"標準収量におけるモデルケースでのGHG排出量（kg-CO2e / 10kg）",null,null,null,{"$f":"IF(D5=\"　\",\"\",SUM(E12:E22)+VLOOKUP(D5,S8:AD34,4,FALSE))","v":{"$error":"#N/A"}}]
[null,null,"農薬・化学肥料の使用量ゼロ",null,{"$f":"IF(D13=\"〇\",VLOOKUP($D$5,$S$8:$AD$34,6,FALSE),\"ー\")","v":"ー"},"←","該当する取組みがあればご選択ください。",null,null,null,null,null,null,null,null,null,null,null,"なす露地",5743,5700,3.66,-0.86,-1.72,-1.63,-0.59,-0.91,-0.01,-0.01,-0.12,null,null,null,null,null,null,"収量入力の有無",null,null,null,{"$f":"IF(D8=\"\",\"有\",\"無\")","v":{"$error":"#N/A"}}]
[null,null,"農薬・化学肥料（チッソ）の使用量ゼロ","　",{"$f":"IF(D14=\"〇\",VLOOKUP($D$5,$S$8:$AD$34,7,FALSE),\"ー\")","v":"ー"},"←",null,null,null,null,null,null,null,null,null,null,null,null,"なす施設",13434,13400,9.5,-0.54,-1.0900000000000001,-1.03,-0.64,-0.95,-0.05,-5.43,-0.98,null,null,null,null,null,null,"標準収量(kg/10a)",null,null,null,{"$f":"IF(AO8=\"　\",\"\",VLOOKUP($AO$8,S8:T34,2,FALSE))","v":{"$error":"#N/A"}}]
[null,null,null,null,null,null,null,null,null,null,null,null,null,null,null,null,null,null,"ほうれんそう",1150,1200,6.31,-1.34,-2.69,-2.5099999999999998,-1.1200000000000001,-1.7,-0.01,-0.01,-0.23,null,null,null,null,null,null,"算定収量(kg/10a)",null,null,null,{"$f":"IF(AO13=\"無\",VLOOKUP(D5,S8:AD34,2,FALSE),D6*10/D7)","v":{"$error":"#N/A"}}]
[null,null,"燃料・電気",null,null,null,null,null,null,null,null,null,null,null,null,null,null,null,"白ねぎ",2566,2600,4.79,-1.1200000000000001,-2.23,-2.0499999999999998,-0.77,-1.18,0,-0.01,-0.16,null,null,null,null,null,null,"算定収量におけるGHG排出量（kg-CO2e / 10kg）",null,null,null,{"$f":"AO12*AO14/AO15","v":{"$error":"#N/A"}}]
[null,null,"取組みモデルケース","選択項目","GHG削減量",null,null,null,null,null,null,null,null,null,null,null,null,null,"たまねぎ",4026,4000,1.72,-0.54,-1.08,-0.98,-0.19,-0.28000000000000003,0,0,-0.04,null,null,null,null,null,null,"収量によるGHG増減量（kg-CO2e / 10kg）",null,null,null,{"$f":"IF(D5=\"　\",\"\",AO16-AO12)","v":{"$error":"#N/A"}}]
[null,null,"栽培でガソリンを使っていない",null,{"$f":"IF(D18=\"〇\",VLOOKUP($D$5,$S$8:$AD$34,8,FALSE),\"ー\")","v":"ー"},"←",null,null,null,null,null,null,null,null,null,null,null,null,"はくさい",7175,7200,1.22,-0.37,-0.74,-0.67,-0.11,-0.17,0,0,-0.03]
[null,null,"栽培で軽油を使っていない",null,{"$f":"IF(D19=\"〇\",VLOOKUP($D$5,$S$8:$AD$34,9,FALSE),\"ー\")","v":"ー"},"←",null,null,null,null,null,null,null,null,null,null,null,null,"ばれいしょ",2201,2200,2.58,-0.66,-1.32,-1.1200000000000001,-0.14000000000000001,-0.77,0,0,-0.06,null,null,null,null,null,null,"（農水省算定シートで算定した場合）算定値",null,null,null,{"$f":"D32","v":0}]
[null,null,"栽培で灯油を使っていない",null,{"$f":"IF(D20=\"〇\",VLOOKUP($D$5,$S$8:$AD$34,10,FALSE),\"ー\")","v":"ー"},"←","　該当する取組みがあればご選択ください。",null,null,null,null,null,null,null,null,null,null,null,"かんしょ",2603,2600,1.82,-0.43,-0.85,-0.74,-0.09,-0.47,0,0,-0.04,null,null,null,null,null,null,"採用するGHG排出量",null,null,null,{"$f":"IF(AO19=0,AO16,AO19)","v":{"$error":"#N/A"}}]
[null,null,"栽培でA重油を使っていない","　",{"$f":"IF(D21=\"〇\",VLOOKUP($D$5,$S$8:$AD$34,11,FALSE),\"ー\")","v":"ー"},"←",null,null,null,null,null,null,null,null,null,null,null,null,"キャベツ",3802,3800,1.87,-0.61,-1.21,-1.1599999999999999,-0.2,-0.32,0,0,-0.05]
[null,null,"栽培で電気を使っていない",null,{"$f":"IF(D22=\"〇\",VLOOKUP($D$5,$S$8:$AD$34,12,FALSE),\"ー\")","v":"ー"},"←",null,null,null,null,null,null,null,null,null,null,null,null,"レタス",2246,2200,3.76,-0.84,1.68,-1.48,-0.51,-0.78,0,0,-0.11]
[null,null,null,null,null,null,null,null,null,null,null,null,null,null,null,null,null,null,"だいこん",5325,5300,1.54,-0.35,-0.69,-0.64,-0.23,-0.35,0,0,-0.05]
[null,null,"収量によるGHG排出量の増減量（kg-CO2e / 10kg）",null,{"$f":"IF(D8=\"\",AO17,\"モデル収量による算定ため増減０\")","v":{"$error":"#N/A"}},null,null,null,null,null,null,null,null,null,null,null,null,null,"にんじん",4048,4050,1.73,-0.47,-0.94,-0.86,-0.24,-0.37,0,0,-0.05]
[null,null,null,null,null,null,null,null,null,null,null,null,null,null,null,null,null,null,"アスパラガス",364.6,360,30.33,-9.58,-19.149999999999999,-15.98,-3.68,-5.64,-0.03,-0.04,-0.69]
[null,null,null,null,null,null,null,null,null,null,null,null,null,null,null,null,null,null,"りんご",2165,2200,3.48,-0.7,-1.4,-1.44,-0.35,-0.54,-0.05,-0.85,-0.01]
[null,null,null,null,null,null,null,null,null,null,null,null,null,null,null,null,null,null,"ミニトマト施設",6339,6300,23.43,-1.1499999999999999,-2.29,-2.23,-1.5,-2.27,-0.14000000000000001,-14.02,-1.73]
[null,null,"【パターン２】より詳細に算定したい場合はこちら",null,null,null,null,null,null,null,null,null,null,null,null,null,null,null,"いちご施設",3312,3300,39.67,-2.37,-4.75,-4.68,-2.5099999999999998,-3.71,-0.21,-21.78,-3.24]
[null,null,null,null,null,null,null,null,null,null,null,null,null,null,null,null,null,null,"みかん露地",2817.5,2800,2.82,-0.7,-1.39,-1.32,-0.25,-0.39,-0.04,-0.63,-0.01]
[null,null,"入力項目",null,null,null,null,null,null,null,null,null,null,null,null,null,null,null,"みかん施設",4918,4900,76.16,-0.66,-1.32,-1.3,-14.93,-22.77,-2.0699999999999998,-34.18,-0.56999999999999995]
[null,null,"農作物",null,null,null,null,null,null,null,null,null,null,null,null,null,null,null,"ぶどう露地",757.5,750,15.3,-1.72,-3.44,-3.45,-1.99,-3.04,-0.27,-4.5,-7.0000000000000007E-2]
[null,null,"農林水産省「温室効果ガス簡易算定シート」\nGHG排出量（kg-CO2e / 10kg）",null,"　←農林水産省「温室効果ガス簡易算定シート」で算定した結果を記入してください。",null,null,null,null,null,null,null,null,null,null,null,null,null,"ぶどう施設",1038.5,1000,13.77,-1.1100000000000001,-2.23,-2.57,-1.98,-3,-0.27,-4.49,-0.08]
[null,null,null,null,null,null,null,null,null,null,null,null,null,null,null,null,null,null,"もも",1261.5,1260,8.99,-1.1200000000000001,-2.2400000000000002,-2.27,-0.89,-1.37,-0.13,-2.16,-0.04]
[null,null,"※農林水産省「温室効果ガス簡易算定シート」は農林水産省ホームページより利用者登録いただくとご利用いただけます。",null,null,null,null,null,null,null,null,null,null,null,null,null,null,null,"日本なし",1908.5,1900,6.55,-1,-1.99,-2.13,-0.64,-0.99,-0.09,-1.61,-0.02]
[]
[null,null,null,null,null,null,null,null,null,null,null,null,null,null,null,null,null,null,"【グラフの引用値】"]
[null,null,null,null,null,null,null,null,null,null,null,null,null,null,null,null,null,null,"収量","GHG排出量","標準値"]
[null,null,"◎【参考】ご選択されたモデルケースにおける収量とGHG削減量の関係",null,null,null,null,null,null,null,null,null,null,null,null,null,null,null,0,null,{"$f":"VLOOKUP(AO8,S7:AD34,4,FALSE)","v":{"$error":"#N/A"}}]
[null,null,null,null,null,null,null,null,null,null,null,null,null,null,null,null,null,null,{"$f":"S41/3","v":{"$error":"#N/A"}},{"$f":"T41*(S41/S39)","v":{"$error":"#N/A"}},{"$f":"VLOOKUP(AO8,S7:AD34,4,FALSE)","v":{"$error":"#N/A"}}]
[null,null,null,null,null,null,null,null,null,null,null,null,null,null,null,null,null,null,{"$f":"S41/1.5","v":{"$error":"#N/A"}},{"$f":"T41*(S41/S40)","v":{"$error":"#N/A"}},{"$f":"VLOOKUP(AO8,S7:AD34,4,FALSE)","v":{"$error":"#N/A"}}]
[null,null,null,null,null,null,null,null,null,null,null,null,null,null,null,null,null,null,{"$f":"VLOOKUP(AO8,S7:AD34,2,FALSE)","v":{"$error":"#N/A"}},{"$f":"AO12","v":{"$error":"#N/A"}},{"$f":"VLOOKUP(AO8,S7:AD34,4,FALSE)","v":{"$error":"#N/A"}}]
[null,null,null,null,null,null,null,null,null,null,null,null,null,null,null,null,null,null,{"$f":"S41*1.5","v":{"$error":"#N/A"}},{"$f":"T41*(S41/S42)","v":{"$error":"#N/A"}},{"$f":"VLOOKUP(AO8,S7:AD34,4,FALSE)","v":{"$error":"#N/A"}}]

{"sheet":"【ステップ２】流通段階","index":2,"n_rows":63,"n_cols":17,"rows_kept":63,"cut":false,"hidden":false,"merged":[[41,2,41,3],[41,4,41,6],[42,2,42,3],[43,2,43,3]]}
[null,"大阪版カーボンフットプリント簡易算定シート（流通段階）",null,null,"確認事項のチェックリストに✓がされていません"]
[]
[null,null,"【必須項目】具体的な輸送距離が分からない場合"]
[]
[null,null,"入力項目",null,null,null,null,null,null,null,null,"　「大阪産」のほか、下記の「地域単位」や「市町村単位」で選択可能です。"]
[null,null,"生産地",{"$f":"IFERROR(P44,\"産地を右表から選択ください\")","v":"産地を右表から選択ください"},"　　右記の「産地一覧」からご選択ください。",null,null,null,null,"➡"]
[null,null,"生産地→最寄りの直売所・店舗へ持込み",null,"←",null,null,null,null,null,null,null,"選択欄","産地一覧",null,"選択欄","産地一覧"]
[null,null,"生産地→府内の直売所・店舗へ持込み",null,"←","該当する輸送パターンを１つご選択ください。",null,null,null,null,null,null,null,"大阪産",null,null,"南河内産"]
[null,null,"生産地→集荷場や卸売市場","　","←",null,null,null,null,null,null,null,"　","大阪市産",null,"　","松原市産"]
[null,null,null,null,null,null,null,null,null,null,null,null,"　","堺市産",null,null,"羽曳野市産"]
[null,null,"【追加項目】具体的な輸送距離が分かる場合",null,null,null,null,null,null,null,null,null,null,"豊能地域産",null,"　","藤井寺市産"]
[null,null,null,null,null,null,null,null,null,null,null,null,"　","能勢町産",null,null,"太子町産"]
[null,null,"生産地から出荷場所までの輸送距離",null,"km","←例）10kmなど",null,null,null,null,null,null,"　","豊能町産",null,null,"河南町産"]
[null,null,null,null,null,null,null,null,null,null,null,null,null,"池田市産",null,null,"千早赤阪村産"]
[null,null,null,null,null,null,null,null,null,null,null,null,null,"箕面市産",null,null,"富田林市産"]
[null,null,null,null,null,null,null,null,null,null,null,null,null,"豊中市産",null,"　","大阪狭山市産"]
[null,null,null,null,null,null,null,null,null,null,null,null,null,"三島地域産",null,"　","河内長野市産"]
[null,null,null,null,null,null,null,null,null,null,null,null,null,"茨木市産",null,"　","泉州産"]
[null,null,null,null,null,null,null,null,null,null,null,null,null,"高槻市産",null,null,"和泉市産"]
[null,null,null,null,null,null,null,null,null,null,null,null,null,"島本町産",null,null,"高石市産"]
[null,null,null,null,null,null,null,null,null,null,null,null,null,"吹田市産",null,null,"泉大津市産"]
[null,null,null,null,null,null,null,null,null,null,null,null,null,"摂津市産",null,null,"忠岡町産"]
[null,null,null,null,null,null,null,null,null,null,null,null,null,"北河内産",null,null,"岸和田市産"]
[null,null,null,null,null,null,null,null,null,null,null,null,null,"枚方市産",null,null,"貝塚市産"]
[null,null,null,null,null,null,null,null,null,null,null,null,null,"交野市産",null,null,"熊取町産"]
[null,null,null,null,null,null,null,null,null,null,null,null,null,"寝屋川市産",null,null,"泉佐野市産"]
[null,null,null,null,null,null,null,null,null,null,null,null,null,"守口市産",null,null,"田尻町産"]
[null,null,null,null,null,null,null,null,null,null,null,null,"　","門真市産",null,null,"泉南市産"]
[null,null,null,null,null,null,null,null,null,null,null,null,null,"四条畷市産",null,null,"阪南市産"]
[null,null,null,null,null,null,null,null,null,null,null,null,null,"大東市産",null,null,"岬町産"]
[null,null,null,null,null,null,null,null,null,null,null,null,null,"中河内産"]
[null,null,null,null,null,null,null,null,null,null,null,null,null,"東大阪市産"]
[null,null,null,null,null,null,null,null,null,null,null,null,null,"八尾市産"]
[null,null,null,null,null,null,null,null,null,null,null,null,null,"柏原市産"]
[]
[]
[]
[null,"↓公表時は非公表"]
[null,"◎算定"]
[null,null,"【流通段階】",null,null,null,null,null,null,null,null,null,null,"◎参照データ"]
[null,null,"◎入力条件に基づくGHG排出量・削減率算定（「③CFP算定結果」で表示）",null,null,null,null,null,null,null,null,null,null,"【産地名入力用】"]
[null,null,"輸送パターン",null,{"$f":"IF(D7=\"〇\",C7,IF(D8=\"〇\",C8,IF(D9=\"〇\",C9,\"\")))","v":""},null,null,null,null,null,null,null,null,"大阪市～中河内",null,{"$f":"VLOOKUP(\"〇\",M8:O34,2,FALSE)","v":{"$error":"#N/A"}}]
[null,null,"輸送パターン",null,{"$f":"IF(E42=\"\",\"\",IF(E42=\"生産地→最寄りの直売所・店舗へ持込み\",\"生産地→最寄りの直売所・店舗へ持込み\",IF(E42=\"生産地→府内の直売所・店舗へ持込み\",\"生産地→府内の直売所・店舗へ持込み\",\"生産地→集荷場や卸売市場\")))","v":""},null,null,null,null,null,null,null,null,"南河内～泉州",null,{"$f":"VLOOKUP(\"〇\",P8:R30,2,FALSE)","v":{"$error":"#N/A"}}]
[null,null,"輸送距離パターン",null,{"$f":"IF(E42=\"\",\"\",IF(E42=\"生産地→最寄りの直売所・店舗へ持込み\",E55,IF(E42=\"生産地→府内の直売所・店舗へ持込み\",E56,E57)))","v":""},null,null,null,null,null,null,null,null,"選択した産地",null,{"$f":"IFERROR(P42,P43)","v":{"$error":"#N/A"}}]
[]
[null,null,"算定に用いる輸送距離",{"$f":"IF(D13=\"\",E44,D13)","v":""}]
[]
[null,null,"◎流通段階のGHG排出量"]
[null,null,"GHG排出量(kg-CO2e/10kg)",{"$f":"IF(E42=\"\",\"\",IF(E42=\"生産地→最寄りの直売所・店舗へ持込み\",10*(D46*I55)/(F55*(G55*H55*0.01)),10*(D46*I56)/(F56*(G56*H56*0.01))))","v":""}]
[null,null,"削減率（％OFF)",{"$f":"IF(E42=\"\",\"\",1-(D49/J54))","v":""}]
[]
[null,null,"◎各流通パターンにおけるGHG排出量（kg-CO2e/10kg)"]
[null,null,"流通パターン","輸送手段","輸送距離\n(km)","燃費\n(km/l)","最大積載量\n(kg)","積載率\n(%)","GHG排出原単位\n(kg-CO2/l)","GHG排出量\n(kg-CO2/kg)"]
[null,null,"標準値","10tトラック",1000,2.86,10000,62,2.58,{"$f":"(E54*I54)*10/(F54*(G54*H54*0.01))","v":1.4549966162869388}]
[null,null,"ケースA\n(生産地→最寄りの直売所)","2tトラック",20,5.0599999999999996,2000,17,2.58,{"$f":"(E55*I55)*10/(F55*(G55*H55*0.01))","v":0.29993024877935365}]
[null,null,"ケースB\n(生産地→府内の直売所)","2tトラック",50,5.0599999999999996,2000,39,2.58,{"$f":"(E56*I56)*10/(F56*(G56*H56*0.01))","v":0.32684706597750079}]
[null,null,"ケースC\n(生産地→卸市場等)","2tトラック",100,5.0599999999999996,2000,39,2.58,{"$f":"(E57*I57)*10/(F57*(G57*H57*0.01))","v":0.65369413195500159}]
[]
[null,null,"【非選択セルの塗りつぶし条件（R14~R17)】"]
[null,null,"条件書式"]
[null,null,{"$f":"IF(D8=\"〇\",\"塗る\",IF(D9=\"〇\",\"塗る\",\"\"))","v":""}]
[null,null,{"$f":"IF(D7=\"〇\",\"塗る\",IF(D9=\"〇\",\"塗る\",\"\"))","v":""}]
[null,null,{"$f":"IF(D7=\"〇\",\"塗る\",IF(D8=\"〇\",\"塗る\",\"\"))","v":""}]

{"sheet":"算定結果とラベル","index":3,"n_rows":32,"n_cols":47,"rows_kept":32,"cut":false,"hidden":false,"merged":[[8,4,8,5],[9,8,10,8],[9,4,10,5],[19,3,19,7],[20,3,20,7],[9,6,10,7]]}
[]
[null,null,"算定結果",null,null,null,null,null,null,null,null,null,null,null,null,"【参考】生産段階・流通段階のGHG排出量の内訳"]
[]
[null,null,null,null,null,null,null,null,null,null,null,null,null,null,null,null,"◎生産段階のGHG排出量",null,null,null,null,null,null,null,null,null,null,null,null,null,null,null,null,null,null,null,null,null,null,null,null,null,null,null,"↓公表時は非公表"]
[null,null,"GHG排出量（生産時と輸送時の合計）は",null,null,null,null,null,null,null,null,null,null,null,null,null,"収量（kg / 10a）",null,null,{"$f":"IF(D6=\"\",\"\",【ステップ１】生産段階!AO15)","v":""},null,null,null,null,null,null,null,null,null,null,null,null,null,null,null,null,null,null,null,null,null,null,null,null,"◎参照データ"]
[null,null,null,{"$f":"IF(【ステップ２】流通段階!D49=\"\",\"\",【ステップ１】生産段階!AO20+【ステップ２】流通段階!D49)","v":""},"kg-CO2e/10kg",null,"（標準的なGHG排出量は",null,null,{"$f":"IF(D6=\"\",\"\",【ステップ１】生産段階!AO11+【ステップ２】流通段階!J54)","v":""},"kg-CO2e/10kg)",null,null,null,null,null,"GHG排出量（kg-CO2e / 10kg）",null,null,{"$f":"IF(D6=\"\",\"\",【ステップ１】生産段階!AO20)","v":""},null,null,null,null,null,null,null,null,null,null,null,null,null,null,null,null,null,null,null,null,null,null,null,null,"〇ラベル内削減率の表示用"]
[null,null,null,null,null,null,null,null,null,null,null,null,null,null,null,null,"削減率（％OFF)",null,null,{"$f":"IF(D6=\"\",\"\",1-(【ステップ１】生産段階!AO20/【ステップ１】生産段階!AO11))","v":""},null,null,null,null,null,null,null,null,null,null,null,null,null,null,null,null,null,null,null,null,null,null,null,null,{"$f":"IF(E10=\"\",\"\",E10*100)","v":""}]
[null,null,null,null,null,null,null,null,null,null,null,null,null,null,null,null,null,null,null,null,null,null,null,null,null,null,null,null,null,null,null,null,null,null,null,null,null,null,null,null,null,null,null,null,{"$f":"IF(D13=\"\",\"\",\"※標準的な収量と仮定して算定しています\")","v":{"$error":"#N/A"}}]
[null,null,null,"今回算定した",{"$f":"【ステップ１】生産段階!AO8","v":0},null,"のGHG削減率は",null,null,null,null,null,null,null,null,null,"◎流通段階のGHG排出量"]
[null,null,null,null,{"$f":"IF(D6=\"\",\"\",1-(D6/J6))","v":""},null,null,null,null,null,null,null,null,null,null,null,"GHG排出量（kg-CO2e / 10kg）",null,null,{"$f":"IF(D6=\"\",\"\",【ステップ２】流通段階!D49)","v":""},null,null,null,null,null,null,null,null,null,null,null,null,null,null,null,null,null,null,null,null,null,null,null,null,"〇ラベルの産地"]
[null,null,null,null,null,null,null,null,null,null,null,null,null,null,null,null,"削減率（％OFF)",null,null,{"$f":"IF(D6=\"\",\"\",【ステップ２】流通段階!D50)","v":""},null,null,null,null,null,null,null,null,null,null,null,null,null,null,null,null,null,null,null,null,null,null,null,null,null,"転記内容",{"$f":"IFERROR(【ステップ２】流通段階!P44,\"\")","v":""}]
[]
[null,null,null,{"$f":"IF(【ステップ１】生産段階!AO9=\"有\",\"\",\"※今回の算定結果は標準的な収量と仮定した場合の削減率です\")","v":{"$error":"#N/A"}}]
[null,null,null,null,null,null,null,null,null,null,null,null,null,null,null,null,null,null,null,null,null,null,null,null,null,null,null,null,null,null,null,null,null,null,null,null,null,null,null,null,null,null,null,null,"大阪産ロゴマークの許可確認に係るチェックリスト"]
[null,null,null,null,null,null,null,null,null,null,null,null,null,null,null,null,null,null,null,null,null,null,null,null,null,null,null,null,null,null,null,null,null,null,null,null,null,null,null,null,null,null,null,null,"入力判定",false]
[]
[null,null,"大阪版CFP算定ラベル"]
[]
[]
[null,null,"商品名"]
[]
[]
[]
[null,null,"◎デザインA",null,null,null,null,null,null,null,null,null,null,null,null,"◎デザインB",null,null,null,null,null,null,null,null,null,null,null,null,"◎デザインC"]
[null,null,"デザインAは、以下のいずれかに当てはまる場合に限り使用できます。"]
[null,null,"　◎大阪産（もん）ロゴマークの使用許可を大阪府から得ている",null,null,null,null,null,"　　＞＞これから申請したい方はこちら"]
[null,null,"　◎JAの組合員が一次産品に仕様する場合（加工品・料理については許可が必要）"]
[null,null,"　◎その他、大阪産（もん）商標登録ロゴマーク使用管理要領第５条に当てはまる場合"]
[null,null,null,"確認事項：上記のいずれかに当てはまる場合✓をつけてください。"]
[]
[null,null,null,null,"          ←こちらをクリックすると、ラベルが",null,null,null,null,null,null,null,null,null,null,null,null,null,"                        ←こちらをクリックすると、ラベルが",null,null,null,null,null,null,null,null,null,null,null,null,"            ←こちらをクリックすると、ラベルのダウンロードページに移動します。"]
[null,null,null,null,"　          デスクトップに保存されます！",null,null,null,null,null,null,null,null,null,null,null,null,null,"　                        デスクトップに保存されます！"]